fUST/lending_fUST_20250717
["ID","MTS","AMOUNT","RATE_DAILY","PERIOD"]
[372577507,1752690648041,-587.43,0.00020547,2]
[372577508,1752690648051,-460.0,0.00020547,2]
[372577509,1752690648060,-720.93,0.00020547,2]
[372577510,1752690648069,-654.85,0.00020547,2]
[372577511,1752690648078,-621.95,0.00020547,2]
[372577512,1752690648087,-4910.64,0.00020547,2]
[372577513,1752690648096,-460.0,0.00020547,2]
[372577514,1752690648105,-588.07,0.00020547,2]
[372577515,1752690648114,-460.0,0.00020547,2]
[372577516,1752690648123,-2634.73,0.00020547,2]
[372577517,1752690648131,-460.0,0.00020547,2]
[372577518,1752690648140,-460.0,0.00020547,2]
[372577519,1752690648149,-796.59,0.00020547,2]
[372577520,1752690648158,-2262.11,0.00020547,2]
[372577521,1752690648167,-460.0,0.00020547,2]
[372577522,1752690648176,-573.57,0.00020547,2]
[372577523,1752690648185,-460.0,0.00020547,2]
[372577524,1752690648194,-460.0,0.00020547,2]
[372577525,1752690648204,-699.76,0.00020547,2]
[372577526,1752690648213,-460.0,0.00020547,2]
[372577527,1752690648223,-1384.47,0.00020547,2]
[372577528,1752690648232,-2061.49,0.00020547,2]
[372577529,1752690648241,-559.79,0.00020547,2]
[372577530,1752690648251,-1819.44,0.00020547,2]
[372577531,1752690648260,-532.66,0.00020547,2]
[372577532,1752690648269,-460.0,0.00020547,2]
[372577533,1752690648278,-567.21,0.00020547,2]
[372577534,1752690648287,-777.35,0.00020547,2]
[372577535,1752690648296,-214.40824756,0.0002059,3]
[372577536,1752690648306,-5736.56947062,0.0002059,3]
[372577537,1752690648315,-468.75,0.0002059,3]
[372577538,1752690648324,-12605.49131908,0.0002059,3]
[372577539,1752690648333,-420.0,0.00020602,2]
[372577540,1752690648342,-420.0,0.00020602,2]
[372577541,1752690648352,-776.87375658,0.00020625,2]
[372577542,1752690648361,-480.0,0.00020672,2]
[372577543,1752690648372,-160.0,0.0002068,2]
[372577544,1752690648381,-1680.0,0.00020702,2]
[372577545,1752690648390,-1000.0,0.00020709,2]
[372577546,1752690648399,-506.54450191,0.00020709,2]
[372577547,1752690648408,-1000.0,0.00020709,2]
[372577548,1752690648418,-500.0,0.00020709,2]
[372577549,1752690648428,-1000.0,0.00020709,2]
[372577550,1752690648437,-1000.0,0.00020709,2]
[372577551,1752690648446,-1000.0,0.00020709,2]
[372577552,1752690648455,-1000.0,0.00020709,2]
[372577553,1752690648465,-1000.0,0.00020709,2]
[372577554,1752690648474,-500.0,0.00020709,2]
[372577555,1752690648483,-1000.0,0.00020709,2]
[372577556,1752690648492,-160.0,0.00020712,2]
[372577557,1752690648501,-230.8109288,0.00020712,2]
[372577558,1752690648511,-160.0,0.00020712,2]
[372577559,1752690648520,-160.0,0.00020712,2]
[372577560,1752690648530,-12605.49131908,0.00020712,2]
[372577561,1752690648540,-476.07036022,0.00020712,2]
[372577562,1752690648549,-160.0,0.00020712,2]
[372577563,1752690648558,-160.0,0.00020712,2]
[372577564,1752690648567,-160.0,0.00020712,2]
[372577565,1752690648576,-160.0,0.00020712,2]
[372577566,1752690648585,-160.0,0.00020712,2]
[372577567,1752690648594,-525.58295679,0.00020712,2]
[372577568,1752690648603,-214.40824756,0.00020712,2]
[372577569,1752690648613,-160.0,0.00020712,2]
[372577570,1752690648622,-215.5496034,0.00020712,2]
[372577571,1752690648631,-12605.49131908,0.00020728,3]
[372577572,1752690648640,-539.16347425,0.00020792,2]
[372577573,1752690648649,-1000.0,0.00020808,2]
[372577574,1752690648658,-1005.88838697,0.00020808,2]
[372577575,1752690648667,-460.0,0.00020821,2]
[372577576,1752690648677,-590.64,0.00020821,2]
[372577577,1752690648690,-458.4,0.00020821,2]
[372577578,1752690648699,-460.0,0.00020821,2]
[372577579,1752690648708,-460.0,0.00020821,2]
[372577580,1752690648719,-460.0,0.00020821,2]
[372577581,1752690648729,-460.0,0.00020821,2]
[372577582,1752690648738,-581.58,0.00020821,2]
[372577583,1752690648747,-156.04,0.00020821,2]
[372577584,1752690648757,-460.0,0.00020821,2]
[372577585,1752690648767,-600.16,0.00020821,2]
[372577586,1752690648776,-460.0,0.00020821,2]
[372577587,1752690648785,-460.0,0.00020821,2]
[372577588,1752690648794,-460.0,0.00020821,2]
[372577589,1752690648804,-630.18,0.00020821,2]
[372577590,1752690648814,-460.0,0.00020821,2]
[372577591,1752690648823,-460.0,0.00020821,2]
[372577592,1752690648833,-697.63,0.00020821,2]
[372577593,1752690648842,-460.0,0.00020821,2]
[372577594,1752690648852,-753.91,0.00020821,2]
[372577595,1752690648861,-948.59,0.00020821,2]
[372577596,1752690648870,-803.35,0.00020821,2]
[372577597,1752690648879,-460.0,0.00020821,2]
[372577598,1752690648889,-460.0,0.00020821,2]
[372577599,1752690648898,-460.0,0.00020821,2]
[372577600,1752690648908,-460.0,0.00020821,2]
[372577601,1752690648917,-460.0,0.00020821,2]
[372577602,1752690648927,-877.46,0.00020821,2]
[372577603,1752690648936,-460.0,0.00020821,2]
[372577604,1752690648945,-460.0,0.00020821,2]
[372577605,1752690648955,-768.26,0.00020821,2]
[372577606,1752690648964,-785.2,0.00020821,2]
[372577607,1752690648975,-460.0,0.00020821,2]
[372577608,1752690648984,-460.0,0.00020821,2]
[372577609,1752690648994,-1527.39,0.00020821,2]
[372577610,1752690649003,-1299.29,0.00020821,2]
[372577611,1752690649013,-3730.58,0.00020821,2]
[372577612,1752690649022,-460.0,0.00020821,2]
[372577613,1752690649032,-1854.38,0.00020821,2]
[372577614,1752690649041,-460.0,0.00020821,2]
[372577615,1752690649051,-5722.12,0.00020821,2]
[372577616,1752690649061,-830.33,0.00020821,2]
[372577617,1752690649071,-587.43,0.00020821,2]
[372577618,1752690649080,-460.0,0.00020821,2]
[372577619,1752690649090,-720.93,0.00020821,2]
[372577620,1752690649100,-654.85,0.00020821,2]
[372577621,1752690649109,-621.95,0.00020821,2]
[372577622,1752690649119,-4910.64,0.00020821,2]
[372577623,1752690649128,-460.0,0.00020821,2]
[372577624,1752690649138,-588.07,0.00020821,2]
[372577625,1752690649148,-460.0,0.00020821,2]
[372577626,1752690649157,-2634.73,0.00020821,2]
[372577627,1752690649167,-460.0,0.00020821,2]
[372577628,1752690649176,-460.0,0.00020821,2]
[372577629,1752690649186,-796.59,0.00020821,2]
[372577630,1752690649195,-2262.11,0.00020821,2]
[372577631,1752690649205,-460.0,0.00020821,2]
[372577632,1752690649215,-573.57,0.00020821,2]
[372577633,1752690649226,-460.0,0.00020821,2]
[372577634,1752690649235,-460.0,0.00020821,2]
[372577635,1752690649245,-699.76,0.00020821,2]
[372577636,1752690649255,-460.0,0.00020821,2]
[372577637,1752690649264,-1384.47,0.00020821,2]
[372577638,1752690649274,-2061.49,0.00020821,2]
[372577639,1752690649283,-559.79,0.00020821,2]
[372577640,1752690649292,-1819.44,0.00020821,2]
[372577641,1752690649302,-460.0,0.00020821,2]
[372577642,1752690649312,-777.35,0.00020821,2]
[372577643,1752690649322,-1500.0,0.0002083,2]
[372577644,1752690649332,-5736.56947062,0.00020831,4]
[372577645,1752690649341,-500.0,0.00020853,2]
[372577646,1752690649351,-500.0,0.00020853,2]
[372577647,1752690649361,-432.93733145,0.00020858,2]
[372577648,1752690649371,-14300.23978458,0.00021,2]
[372577649,1752690649381,-2061.528,0.00021033,2]
[372577650,1752690649390,-178.19617358,0.00021033,2]
[372577651,1752690649400,-5736.56947062,0.00021072,4]
[372577652,1752690649410,-474.16362584,0.00021095,2]
[372577653,1752690649420,-460.0,0.00021095,2]
[372577654,1752690649430,-557.37,0.00021095,2]
[372577655,1752690649439,-460.0,0.00021095,2]
[372577656,1752690649450,-460.0,0.00021095,2]
[372577657,1752690649460,-581.58,0.00021095,2]
[372577658,1752690649469,-460.0,0.00021095,2]
[372577659,1752690649480,-600.16,0.00021095,2]
[372577660,1752690649490,-460.0,0.00021095,2]
[372577661,1752690649500,-460.0,0.00021095,2]
[372577662,1752690649510,-460.0,0.00021095,2]
[372577663,1752690649519,-630.18,0.00021095,2]
[372577664,1752690649529,-460.0,0.00021095,2]
[372577665,1752690649539,-487.51980233,0.00021095,2]
[372577666,1752690649549,-697.63,0.00021095,2]
[372577667,1752690649558,-460.0,0.00021095,2]
[372577668,1752690649568,-753.91,0.00021095,2]
[372577669,1752690649577,-948.59,0.00021095,2]
[372577670,1752690649587,-803.35,0.00021095,2]
[372577671,1752690649596,-460.0,0.00021095,2]
[372577672,1752690649605,-460.0,0.00021095,2]
[372577673,1752690649615,-460.0,0.00021095,2]
[372577674,1752690649625,-460.0,0.00021095,2]
[372577675,1752690649635,-460.0,0.00021095,2]
[372577676,1752690649644,-877.46,0.00021095,2]
[372577677,1752690649654,-460.0,0.00021095,2]
[372577678,1752690649663,-460.0,0.00021095,2]
[372577679,1752690649673,-768.26,0.00021095,2]
[372577680,1752690649685,-785.2,0.00021095,2]
[372577681,1752690649700,-460.0,0.00021095,2]
[372577682,1752690649710,-1527.39,0.00021095,2]
[372577683,1752690649721,-1299.29,0.00021095,2]
[372577684,1752690649731,-3730.58,0.00021095,2]
[372577685,1752690649740,-460.0,0.00021095,2]
[372577686,1752690649749,-1854.38,0.00021095,2]
[372577687,1752690649761,-460.0,0.00021095,2]
[372577688,1752690649772,-5722.12,0.00021095,2]
[372577689,1752690649782,-830.33,0.00021095,2]
[372577690,1752690649792,-587.43,0.00021095,2]
[372577691,1752690649801,-460.0,0.00021095,2]
[372577692,1752690649811,-720.93,0.00021095,2]
[372577693,1752690649821,-654.85,0.00021095,2]
[372577694,1752690649830,-621.95,0.00021095,2]
[372577695,1752690649840,-4910.64,0.00021095,2]
[372577696,1752690649850,-460.0,0.00021095,2]
[372577697,1752690649860,-588.07,0.00021095,2]
[372577698,1752690649870,-460.0,0.00021095,2]
[372577699,1752690649880,-2634.73,0.00021095,2]
[372577700,1752690649891,-460.0,0.00021095,2]
[372577701,1752690649901,-460.0,0.00021095,2]
[372577702,1752690649911,-796.59,0.00021095,2]
[372577703,1752690650044,-2262.11,0.00021095,2]
[372577704,1752690650060,-460.0,0.00021095,2]
[372577705,1752690650069,-573.57,0.00021095,2]
[372577706,1752690650078,-460.0,0.00021095,2]
[372577707,1752690650088,-460.0,0.00021095,2]
[372577708,1752690650097,-699.76,0.00021095,2]
[372577709,1752690650107,-460.0,0.00021095,2]
[372577710,1752690650116,-1384.47,0.00021095,2]
[372577711,1752690650126,-2061.49,0.00021095,2]
[372577712,1752690650136,-559.79,0.00021095,2]
[372577713,1752690650147,-1819.44,0.00021095,2]
[372577714,1752690650158,-777.35,0.00021095,2]
[372577715,1752690650169,-500.0,0.00021128,2]
[372577716,1752690650180,-500.0,0.00021128,2]
[372577717,1752690650190,-500.0,0.00021128,2]
[372577718,1752690650200,-525.44090785,0.00021128,2]
[372577719,1752690650211,-504.6356854,0.00021128,2]
[372577720,1752690650222,-160.0,0.0002115,3]
[372577721,1752690650232,-260.0,0.00021228,2]
[372577722,1752690650243,-1500.0,0.00021257,2]
[372577723,1752690650252,-1500.0,0.00021257,2]
[372577724,1752690650262,-1500.0,0.00021257,2]
[372577725,1752690650272,-1321.62587952,0.00021257,2]
[372577726,1752690650281,-1000.0,0.00021257,2]
[372577727,1752690650291,-1500.0,0.00021257,2]
[372577728,1752690650301,-776.87375658,0.00021262,2]
[372577729,1752690650310,-5736.56947062,0.00021314,5]
[372577730,1752690650320,-4013.89011524,0.00021342,2]
[372577731,1752690650330,-1500.0,0.00021356,2]
[372577732,1752690650339,-460.0,0.00021369,2]
[372577733,1752690650349,-460.0,0.00021369,2]
[372577734,1752690650359,-460.0,0.00021369,2]
[372577735,1752690650369,-581.58,0.00021369,2]
[372577736,1752690650379,-460.0,0.00021369,2]
[372577737,1752690650388,-600.16,0.00021369,2]
[372577738,1752690650398,-460.0,0.00021369,2]
[372577739,1752690650407,-460.0,0.00021369,2]
[372577740,1752690650418,-460.0,0.00021369,2]
[372577741,1752690650428,-630.18,0.00021369,2]
[372577742,1752690650439,-460.0,0.00021369,2]
[372577743,1752690650449,-697.63,0.00021369,2]
[372577744,1752690650459,-460.0,0.00021369,2]
[372577745,1752690650469,-753.91,0.00021369,2]
[372577746,1752690650480,-948.59,0.00021369,2]
[372577747,1752690650490,-803.35,0.00021369,2]
[372577748,1752690650500,-332.58,0.00021369,2]
[372577749,1752690650509,-460.0,0.00021369,2]
[372577750,1752690650519,-460.0,0.00021369,2]
[372577751,1752690650529,-460.0,0.00021369,2]
[372577752,1752690650539,-460.0,0.00021369,2]
[372577753,1752690650549,-877.46,0.00021369,2]
[372577754,1752690650560,-460.0,0.00021369,2]
[372577755,1752690650570,-460.0,0.00021369,2]
[372577756,1752690650580,-768.26,0.00021369,2]
[372577757,1752690650589,-785.2,0.00021369,2]
[372577758,1752690650599,-460.0,0.00021369,2]
[372577759,1752690650609,-1527.39,0.00021369,2]
[372577760,1752690650619,-1299.29,0.00021369,2]
[372577761,1752690650629,-3730.58,0.00021369,2]
[372577762,1752690650639,-460.0,0.00021369,2]
[372577763,1752690650648,-1854.38,0.00021369,2]
[372577764,1752690650658,-460.0,0.00021369,2]
[372577765,1752690650668,-5722.12,0.00021369,2]
[372577766,1752690650678,-830.33,0.00021369,2]
[372577767,1752690650691,-587.43,0.00021369,2]
[372577768,1752690650700,-460.0,0.00021369,2]
[372577769,1752690650710,-720.93,0.00021369,2]
[372577770,1752690650719,-654.85,0.00021369,2]
[372577771,1752690650732,-621.95,0.00021369,2]
[372577772,1752690650742,-4910.64,0.00021369,2]
[372577773,1752690650752,-460.0,0.00021369,2]
[372577774,1752690650762,-588.07,0.00021369,2]
[372577775,1752690650773,-2634.73,0.00021369,2]
[372577776,1752690650782,-460.0,0.00021369,2]
[372577777,1752690650792,-460.0,0.00021369,2]
[372577778,1752690650802,-460.0,0.00021369,2]
[372577779,1752690650811,-796.59,0.00021369,2]
[372577780,1752690650821,-2262.11,0.00021369,2]
[372577781,1752690650831,-460.0,0.00021369,2]
[372577782,1752690650841,-573.57,0.00021369,2]
[372577783,1752690650851,-574.27,0.00021369,2]
[372577784,1752690650860,-460.0,0.00021369,2]
[372577785,1752690650869,-699.76,0.00021369,2]
[372577786,1752690650879,-460.0,0.00021369,2]
[372577787,1752690650888,-1384.47,0.00021369,2]
[372577788,1752690650898,-2061.49,0.00021369,2]
[372577789,1752690650907,-559.79,0.00021369,2]
[372577790,1752690650917,-1819.44,0.00021369,2]
[372577791,1752690650926,-777.35,0.00021369,2]
[372577792,1752690650935,-2000.0,0.00021378,2]
[372577793,1752690650946,-3020.1310627,0.00021393,2]
[372577794,1752690650955,-500.0,0.00021401,2]
[372577795,1752690650965,-1000.0,0.00021401,2]
[372577796,1752690650976,-12520.75269904,0.000215,2]
[372577797,1752690650985,-500.0,0.00021504,2]
[372577798,1752690650995,-160.0,0.00021507,4]
[372577799,1752690651006,-5736.56947062,0.00021555,5]
[372577800,1752690651016,-2561.55421399,0.00021643,2]
[372577801,1752690651026,-460.0,0.00021643,2]
[372577802,1752690651036,-460.0,0.00021643,2]
[372577803,1752690651046,-460.0,0.00021643,2]
[372577804,1752690651056,-581.58,0.00021643,2]
[372577805,1752690651066,-460.0,0.00021643,2]
[372577806,1752690651075,-600.16,0.00021643,2]
[372577807,1752690651086,-460.0,0.00021643,2]
[372577808,1752690651095,-460.0,0.00021643,2]
[372577809,1752690651105,-460.0,0.00021643,2]
[372577810,1752690651115,-630.18,0.00021643,2]
[372577811,1752690651124,-460.0,0.00021643,2]
[372577812,1752690651134,-697.63,0.00021643,2]
[372577813,1752690651144,-460.0,0.00021643,2]
[372577814,1752690651153,-753.91,0.00021643,2]
[372577815,1752690651163,-948.59,0.00021643,2]
[372577816,1752690651173,-803.35,0.00021643,2]
[372577817,1752690651183,-460.0,0.00021643,2]
[372577818,1752690651192,-460.0,0.00021643,2]
[372577819,1752690651203,-460.0,0.00021643,2]
[372577820,1752690651212,-460.0,0.00021643,2]
[372577821,1752690651222,-877.46,0.00021643,2]
[372577822,1752690651231,-460.0,0.00021643,2]
[372577823,1752690651242,-206.42,0.00021643,2]
[372577824,1752690651253,-768.26,0.00021643,2]
[372577825,1752690651263,-785.2,0.00021643,2]
[372577826,1752690651274,-479.97,0.00021643,2]
[372577827,1752690651284,-1527.39,0.00021643,2]
[372577828,1752690651294,-1299.29,0.00021643,2]
[372577829,1752690651306,-3730.58,0.00021643,2]
[372577830,1752690651315,-460.0,0.00021643,2]
[372577831,1752690651324,-1854.38,0.00021643,2]
[372577832,1752690651333,-460.0,0.00021643,2]
[372577833,1752690651343,-5722.12,0.00021643,2]
[372577834,1752690651352,-830.33,0.00021643,2]
[372577835,1752690651364,-587.43,0.00021643,2]
[372577836,1752690651375,-508.47,0.00021643,2]
[372577837,1752690651384,-720.93,0.00021643,2]
[372577838,1752690651393,-654.85,0.00021643,2]
[372577839,1752690651402,-621.95,0.00021643,2]
[372577840,1752690651412,-4910.64,0.00021643,2]
[372577841,1752690651421,-460.0,0.00021643,2]
[372577842,1752690651430,-588.07,0.00021643,2]
[372577843,1752690651440,-2634.73,0.00021643,2]
[372577844,1752690651450,-460.0,0.00021643,2]
[372577845,1752690651459,-460.0,0.00021643,2]
[372577846,1752690651469,-460.0,0.00021643,2]
[372577847,1752690651479,-796.59,0.00021643,2]
[372577848,1752690651489,-2262.11,0.00021643,2]
[372577849,1752690651499,-460.0,0.00021643,2]
[372577850,1752690651509,-573.57,0.00021643,2]
[372577851,1752690651519,-460.0,0.00021643,2]
[372577852,1752690651528,-699.76,0.00021643,2]
[372577853,1752690651538,-460.0,0.00021643,2]
[372577854,1752690651548,-1384.47,0.00021643,2]
[372577855,1752690651558,-2061.49,0.00021643,2]
[372577856,1752690651567,-559.79,0.00021643,2]
[372577857,1752690651578,-1819.44,0.00021643,2]
[372577858,1752690651588,-777.35,0.00021643,2]
[372577859,1752690651599,-1000.0,0.00021676,2]
[372577860,1752690651610,-151.0,0.000217,3]
[372577861,1752690651620,-447.5,0.00021713,4]
[372577862,1752690651631,-3020.1310628,0.00021766,2]
[372577863,1752690651641,-360.0,0.00021776,2]
[372577864,1752690651652,-576.8651031,0.00021781,2]
[372577865,1752690651661,-645.6901752,0.00021781,2]
[372577866,1752690651671,-576.8651031,0.00021781,2]
[372577867,1752690651680,-5736.56947062,0.00021797,6]
[372577868,1752690651693,-1593.18124554,0.00021805,2]
[372577869,1752690651703,-939.45181846,0.00021805,2]
[372577870,1752690651712,-1374.61804698,0.00021805,2]
[372577871,1752690651722,-2000.0,0.00021805,2]
[372577872,1752690651733,-576.8651031,0.00021808,2]
[372577873,1752690651742,-159.7314836,0.00021836,2]
[372577874,1752690651752,-432.93733145,0.00021853,2]
[372577875,1752690651764,-160.0,0.00021864,5]
[372577876,1752690651774,-159.7314836,0.0002189,2]
[372577877,1752690651784,-159.7314836,0.0002189,2]
[372577878,1752690651793,-159.7314836,0.0002189,2]
[372577879,1752690651803,-159.7314836,0.0002189,2]
[372577880,1752690651813,-159.7314836,0.0002189,2]
[372577881,1752690651822,-159.7314836,0.0002189,2]
[372577882,1752690651832,-776.87375658,0.00021899,2]
[372577883,1752690651841,-2000.0,0.00021904,2]
[372577884,1752690651851,-114424.95216023,0.00021916,2]
[372577885,1752690651860,-460.0,0.00021917,2]
[372577886,1752690651870,-460.0,0.00021917,2]
[372577887,1752690651879,-460.0,0.00021917,2]
[372577888,1752690651889,-581.58,0.00021917,2]
[372577889,1752690651899,-460.0,0.00021917,2]
[372577890,1752690651908,-600.16,0.00021917,2]
[372577891,1752690651918,-462.93,0.00021917,2]
[372577892,1752690651927,-460.0,0.00021917,2]
[372577893,1752690651937,-460.0,0.00021917,2]
[372577894,1752690651946,-630.18,0.00021917,2]
[372577895,1752690651955,-460.0,0.00021917,2]
[372577896,1752690651965,-697.63,0.00021917,2]
[372577897,1752690651975,-460.0,0.00021917,2]
[372577898,1752690651984,-753.91,0.00021917,2]
[372577899,1752690651994,-948.59,0.00021917,2]
[372577900,1752690652004,-803.35,0.00021917,2]
[372577901,1752690652013,-578.1,0.00021917,2]
[372577902,1752690652023,-460.0,0.00021917,2]
[372577903,1752690652033,-460.0,0.00021917,2]
[372577904,1752690652043,-460.0,0.00021917,2]
[372577905,1752690652052,-877.46,0.00021917,2]
[372577906,1752690652062,-460.0,0.00021917,2]
[372577907,1752690652072,-768.26,0.00021917,2]
[372577908,1752690652082,-785.2,0.00021917,2]
[372577909,1752690652092,-1527.39,0.00021917,2]
[372577910,1752690652102,-1299.29,0.00021917,2]
[372577911,1752690652112,-3730.58,0.00021917,2]
[372577912,1752690652121,-207.02,0.00021917,2]
[372577913,1752690652131,-1854.38,0.00021917,2]
[372577914,1752690652140,-433.72,0.00021917,2]
[372577915,1752690652149,-500.0,0.00021917,2]
[372577916,1752690652159,-500.0,0.00021917,2]
[372577917,1752690652169,-5722.12,0.00021917,2]
[372577918,1752690652178,-500.0,0.00021917,2]
[372577919,1752690652187,-500.0,0.00021917,2]
[372577920,1752690652197,-500.0,0.00021917,2]
[372577921,1752690652206,-500.0,0.00021917,2]
[372577922,1752690652215,-536.59,0.00021917,2]
[372577923,1752690652226,-830.33,0.00021917,2]
[372577924,1752690652236,-587.43,0.00021917,2]
[372577925,1752690652245,-720.93,0.00021917,2]
[372577926,1752690652255,-654.85,0.00021917,2]
[372577927,1752690652265,-621.95,0.00021917,2]
[372577928,1752690652275,-4910.64,0.00021917,2]
[372577929,1752690652285,-460.0,0.00021917,2]
[372577930,1752690652295,-588.07,0.00021917,2]
[372577931,1752690652305,-2634.73,0.00021917,2]
[372577932,1752690652315,-460.0,0.00021917,2]
[372577933,1752690652325,-460.0,0.00021917,2]
[372577934,1752690652335,-403.95,0.00021917,2]
[372577935,1752690652345,-796.59,0.00021917,2]
[372577936,1752690652355,-2262.11,0.00021917,2]
[372577937,1752690652366,-460.0,0.00021917,2]
[372577938,1752690652376,-573.57,0.00021917,2]
[372577939,1752690652386,-460.0,0.00021917,2]
[372577940,1752690652396,-699.76,0.00021917,2]
[372577941,1752690652406,-1384.47,0.00021917,2]
[372577942,1752690652415,-460.0,0.00021917,2]
[372577943,1752690652425,-2061.49,0.00021917,2]
[372577944,1752690652435,-559.79,0.00021917,2]
[372577945,1752690652445,-1819.44,0.00021917,2]
[372577946,1752690652455,-200.0,0.00021918,2]
[372577947,1752690652465,-1530.0,0.00021918,2]
[372577948,1752690652475,-151.0,0.00021918,2]
[372577949,1752690652485,-151.0,0.00021918,2]
[372577950,1752690652529,-151.0,0.00021918,2]
[372577951,1752690652539,-151.0,0.00021918,2]
[372577952,1752690652548,-151.0,0.00021918,2]
[372577953,1752690652558,-500.0,0.00021918,2]
[372577954,1752690652567,-500.0,0.00021918,2]
[372577955,1752690652577,-543.0,0.00021918,2]
[372577956,1752690652586,-151.0,0.00021918,2]
[372577957,1752690652595,-151.0,0.00021918,2]
[372577958,1752690652605,-151.0,0.00021918,2]
[372577959,1752690652614,-151.0,0.00021918,2]
[372577960,1752690652623,-151.0,0.00021918,2]
[372577961,1752690652633,-151.0,0.00021918,2]
[372577962,1752690652642,-191.13645195,0.00021918,2]
[372577963,1752690652651,-150000.0,0.00021918,2]
[372577964,1752690652660,-150000.0,0.00021918,2]
[372577965,1752690652670,-150000.0,0.00021918,2]
[372577966,1752690652681,-158.03292145,0.0002192,4]
[372577967,1752690652692,-159.13686405,0.0002192,4]
[372577968,1752690652702,-2500.0,0.00021926,2]
[372577969,1752690652711,-1500.0,0.00021949,2]
[372577970,1752690652722,-82484.65948218,0.0002196,2]
[372577971,1752690652733,-151.0,0.0002196,7]
[372577972,1752690652742,-209.544616,0.0002196,7]
[372577973,1752690652751,-151.0,0.0002196,7]
[372577974,1752690652762,-151.0,0.0002196,7]
[372577975,1752690652772,-151.0,0.0002196,7]
[372577976,1752690652782,-500.0,0.00021973,2]
[372577977,1752690652791,-500.0,0.00021973,2]
[372577978,1752690652800,-500.8009727,0.00021973,2]
[372577979,1752690652809,-158.13031475,0.00021973,2]
[372577980,1752690652819,-500.0,0.00021973,2]
[372577981,1752690652828,-500.0,0.00021973,2]
[372577982,1752690652837,-500.0,0.00021973,2]
[372577983,1752690652847,-500.0,0.00021973,2]
[372577984,1752690652857,-38218.91982865,0.00021973,2]
[372577985,1752690652866,-500.0,0.00021973,2]
[372577986,1752690652875,-500.0,0.00021973,2]
[372577987,1752690652885,-500.0,0.00021973,2]
[372577988,1752690652894,-500.0,0.00021973,2]
[372577989,1752690652903,-500.0,0.00021973,2]
[372577990,1752690652912,-500.0,0.00021973,2]
[372577991,1752690652922,-500.0,0.00021973,2]
[372577992,1752690652931,-500.81020057,0.00021973,2]
[372577993,1752690652940,-500.0,0.00021973,2]
[372577994,1752690652949,-500.0,0.00021973,2]
[372577995,1752690652959,-500.0,0.00021973,2]
[372577996,1752690652968,-500.0,0.00021973,2]
[372577997,1752690652979,-344.66638024,0.00021973,2]
[372577998,1752690652989,-619.6777069,0.00021973,2]
[372577999,1752690652999,-500.0,0.00021973,2]
[372578000,1752690653009,-500.0,0.00021973,2]
[372578001,1752690653018,-500.0,0.00021973,2]
[372578002,1752690653028,-500.0,0.00021973,2]
[372578003,1752690653038,-500.0,0.00021973,2]
[372578004,1752690653047,-500.0,0.00021973,2]
[372578005,1752690653057,-500.45140818,0.00021973,2]
[372578006,1752690653066,-500.0,0.00021973,2]